[Event "Hungarian U20 Junior-ch Women 2024"]
[Site "Budapest"]
[Date "2024.03.14"]
[Round "4.2"]
[White "Sipos, Stefania"]
[Black "Sulyok, Eszter"]
[Result "0-1"]
[ECO "B07"]
[WhiteElo "1885"]
[BlackElo "2082"]
[Annotator "RC"]
[PlyCount "100"]
[EventDate "2024.03.10"]
[EventCountry "HUN"]
[SourceTitle "playchess.com"]
[Source "ChessBase"]
[SourceQuality "1"]
[TimeControl "40/5400+30:1800+30"]

1. e4 {[%emt 0:00:37]} d6 {[%emt 0:00:58]} 2. d4 {[%emt 0:02:05]} Nf6 {[%emt 0:00:06]} 3. Nc3 {[%emt 0:00:08]} g6 {[%emt 0:00:04]} 4. Bg5 {[%emt 0:00:49]} c6 {[%emt 0:02:23]} 5. Qd2 {[%emt 0:03:09]} Bg7 {[%emt 0:01:34]} 6. f4 {[%emt 0:01:22]} d5 {[%emt 0:00:44]} 7. e5 {[%emt 0:05:49]} Ne4 {[%emt 0:00:11]} 8. Nxe4 {[%emt 0:00:34]} dxe4 {[%emt 0:00:05]} 9. Ne2 {[%emt 0:03:53]} f6 {[%emt 0:02:55]} 10. Bh4 {[%emt 0:03:21]} O-O {[%emt 0:08:06]} 11. Nc3 {[%emt 0:08:06]} g5 {[%emt 0:05:05]} 12. Bc4+ {[%emt 0:11:04]} Kh8 {[%emt 0:01:23]} 13. fxg5 {[%emt 0:07:36]} fxe5 {[%emt 0:00:32]} 14. O-O-O {[%emt 0:13:08]} b5 {[%emt 0:10:47]} 15. Bb3 {[%emt 0:06:39]} Bg4 {[%emt 0:18:59]} 16. Rdf1 {[%emt 0:05:34]} e3 {[%emt 0:09:20]} 17. Qxe3 {[%emt 0:03:48]} exd4 {[%emt 0:00:57]} 18. Qe4 {[%emt 0:02:07]} dxc3 {[%emt 0:02:46]} 19. Qxg4 {[%emt 0:01:06]} cxb2+ {[%emt 0:04:46]} 20. Kb1 {[%emt 0:00:05]} Na6 {[%emt 0:03:05]} 21. g6 {[%emt 0:03:13]} Qd6 {[%emt 0:02:53]} 22. Bf7 {[%emt 0:05:33]} Nc5 {[%emt 0:15:44]} 23. Bg5 {[%emt 0:07:11]} Rxf7 {[%emt 0:01:58]} 24. gxf7 {[%emt 0:01:34]} Na4 {[%emt 0:01:18]} 25. Rf3 {[%emt 0:01:11]} Rf8 {[%emt 0:01:38]} 26. Rhf1 {[%emt 0:01:36]} Nc3+ {[%emt 0:02:47]} 27. Rxc3 {[%emt 0:00:36]} Bxc3 {[%emt 0:00:04]} 28. Qe2 {[%emt 0:01:45]} Bf6 {[%emt 0:01:48]} 29. Bxf6+ {[%emt 0:00:34]} exf6 {[%emt 0:00:04]} 30. Qe8 {[%emt 0:00:36]} Kg7 {[%emt 0:00:05]} 31. Kxb2 {[%emt 0:00:25]} Rxf7 {[%emt 0:00:18]} 32. Qe4 {[%emt 0:00:35]} Qe5+ {[%emt 0:00:26]} 33. Qxe5 {[%emt 0:00:05]} fxe5 {[%emt 0:00:04]} 34. Re1 {[%emt 0:00:34]} Kf6 {[%emt 0:00:42]} 35. Kc3 {[%emt 0:00:16]} Ke6 {[%emt 0:00:06]} 36. Re2 {[%emt 0:00:58]} Rf4 {[%emt 0:00:41]} 37. g3 {[%emt 0:00:31]} Rg4 {[%emt 0:01:13]} 38. Re3 {[%emt 0:00:33]} Rc4+ {[%emt 0:00:31]} 39. Kb2 {[%emt 0:00:31]} Rd4 {[%emt 0:00:20]} 40. Ra3 {[%emt 0:00:00]} Rd7 {[%emt 0:00:00]} 41. Rc3 {[%emt 0:05:28]} Rc7 {[%emt 0:13:29]} 42. Kc1 {[%emt 0:05:02]} c5 {[%emt 0:00:21]} 43. Kd2 {[%emt 0:00:57]} c4 {[%emt 0:00:13]} 44. Ra3 {[%emt 0:05:37]} Kd5 {[%emt 0:01:26]} 45. Ke3 {[%emt 0:01:36]} Kc5 {[%emt 0:01:36]} 46. Ke4 {[%emt 0:04:22]} Kb4 {[%emt 0:01:05]} 47. Rf3 {[%emt 0:00:31]} c3 {[%emt 0:00:33]} 48. Kxe5 {[%emt 0:03:21]} Ka3 {[%emt 0:01:18]} 49. Kd6 {[%emt 0:01:40]} Rc8 {[%emt 0:00:34]} 50. Rf7 {[%emt 0:03:06]} Kb2 {[%emt 0:00:37]} 0-1

[Event "Hungarian U20 Junior-ch Women 2024"]
[Site "Budapest"]
[Date "2024.03.14"]
[Round "4.3"]
[White "Nandin-Erdene, Davaademberel"]
[Black "Juhasz, Judit"]
[Result "0-1"]
[ECO "A45"]
[WhiteElo "1978"]
[BlackElo "2002"]
[Annotator "RC"]
[PlyCount "92"]
[EventDate "2024.03.10"]
[EventCountry "HUN"]
[SourceTitle "playchess.com"]
[Source "ChessBase"]
[SourceQuality "1"]
[TimeControl "40/5400+30:1800+30"]

1. d4 {[%emt 0:00:54]} Nf6 {[%emt 0:00:35]} 2. Bf4 {[%emt 0:00:08]} g6 {[%emt 0:00:06]} 3. Nc3 {[%emt 0:00:14]} d5 {[%emt 0:00:20]} 4. Qd2 {[%emt 0:00:18]} a6 {[%emt 0:02:44]} 5. O-O-O {[%emt 0:02:35]} h5 {[%emt 0:01:39]} 6. f3 {[%emt 0:00:42]} Bf5 {[%emt 0:02:32]} 7. Re1 {[%emt 0:02:07]} b5 {[%emt 0:04:51]} 8. e4 {[%emt 0:02:28]} dxe4 {[%emt 0:03:57]} 9. fxe4 {[%emt 0:00:57]} b4 {[%emt 0:00:22]} 10. exf5 {[%emt 0:04:44]} bxc3 {[%emt 0:00:16]} 11. Qxc3 {[%emt 0:00:43]} Nd5 {[%emt 0:00:32]} 12. Qf3 {[%emt 0:00:24]} gxf5 {[%emt 0:18:37]} 13. c4 {[%emt 0:08:07]} Nxf4 {[%emt 0:03:30]} 14. Qxa8 {[%emt 0:01:49]} Bh6 {[%emt 0:00:14]} 15. Kb1 {[%emt 0:02:32]} O-O {[%emt 0:01:31]} 16. g3 {[%emt 0:12:24]} Ne6 {[%emt 0:19:05]} 17. d5 {[%emt 0:18:38]} Nc5 {[%emt 0:01:10]} 18. Nf3 {[%emt 0:05:43]} Qd6 {[%emt 0:01:23]} 19. Nh4 {[%emt 0:02:40]} e6 {[%emt 0:18:49]} 20. Bg2 {[%emt 0:05:49]} Qb6 {[%emt 0:01:29]} 21. dxe6 {[%emt 0:01:02]} fxe6 {[%emt 0:05:42]} 22. Qf3 {[%emt 0:02:22]} Bg7 {[%emt 0:00:20]} 23. Re2 {[%emt 0:01:48]} Rd8 {[%emt 0:01:37]} 24. Rc2 {[%emt 0:10:55]} Ne4 {[%emt 0:03:29]} 25. Qf4 {[%emt 0:07:26]} Nf6 {[%emt 0:04:44]} 26. Re1 {[%emt 0:01:26]} Nbd7 {[%emt 0:00:19]} 27. Rd1 {[%emt 0:01:20]} Rb8 {[%emt 0:00:06]} 28. Qf2 {[%emt 0:01:34]} Nc5 {[%emt 0:01:17]} 29. Ng6 {[%emt 0:00:47]} Ng4 {[%emt 0:00:50]} 30. Qe2 {[%emt 0:01:11]} Na4 {[%emt 0:00:47]} 31. Rdd2 {[%emt 0:01:16]} Qg1+ {[%emt 0:01:58]} 32. Rd1 {[%emt 0:00:37]} Qb6 {[%emt 0:01:02]} 33. b3 {[%emt 0:00:29]} Ne3 {[%emt 0:00:22]} 34. Ne7+ {[%emt 0:00:33]} Kf8 {[%emt 0:00:37]} 35. Ng6+ {[%emt 0:00:24]} Kg8 {[%emt 0:00:13]} 36. Ne7+ {[%emt 0:00:04]} Kf7 {[%emt 0:00:02]} 37. Rd7 {[%emt 0:00:45]} Ke8 {[%emt 0:01:12]} 38. Bc6 {[%emt 0:00:15]} Nxc2 {[%emt 0:00:37]} 39. Rxc7+ {[%emt 0:00:51]} Kf8 {[%emt 0:00:24]} 40. Ng6+ {[%emt 0:00:00]} Kg8 {[%emt 0:00:00]} 41. Ne7+ {[%emt 0:22:27]} Kf8 {[%emt 0:01:07]} 42. Ng6+ {[%emt 0:05:29]} Kg8 {[%emt 0:00:07]} 43. Qxe6+ {[%emt 0:04:21]} Kh7 {[%emt 0:00:10]} 44. Qxf5 {[%emt 0:00:20]} Na3+ {[%emt 0:00:25]} 45. Kc1 {[%emt 0:00:06]} Qe3+ {[%emt 0:00:13]} 46. Kd1 {[%emt 0:00:40]} Nc3# {[%emt 0:00:06]} 0-1

[Event "Hungarian U20 Junior-ch Women 2024"]
[Site "Budapest"]
[Date "2024.03.14"]
[Round "4.4"]
[White "Szarvas, Nora"]
[Black "Toth, Nikoletta"]
[Result "0-1"]
[ECO "C23"]
[WhiteElo "1955"]
[BlackElo "1962"]
[Annotator "ChessBase"]
[PlyCount "84"]
[EventDate "2024.03.10"]
[EventCountry "HUN"]
[SourceTitle "playchess.com"]
[Source "ChessBase"]
[SourceQuality "1"]
[TimeControl "40/5400+30:1800+30"]

1. e4 {[%emt 0:00:37]} e5 {[%emt 0:00:36]} 2. Bc4 {[%emt 0:00:17]} Bc5 {[%emt 0:02:00]} 3. d3 {[%emt 0:01:46]} Nc6 {[%emt 0:01:38]} 4. Nc3 {[%emt 0:00:46]} Nf6 {[%emt 0:06:24]} 5. f4 {[%emt 0:01:00]} d6 {[%emt 0:00:24]} 6. Nf3 {[%emt 0:00:20]} a6 {[%emt 0:14:38]} 7. Nd5 {[%emt 0:03:02]} h6 {[%emt 0:02:07]} 8. Nxf6+ {[%emt 0:11:20]} Qxf6 {[%emt 0:03:17]} 9. f5 {[%emt 0:00:49]} Na5 {[%emt 0:11:13]} 10. Qe2 {[%emt 0:10:02]} Nxc4 {[%emt 0:01:50]} 11. dxc4 {[%emt 0:00:10]} Bd7 {[%emt 0:02:52]} 12. Be3 {[%emt 0:01:45]} O-O-O {[%emt 0:01:50]} 13. c3 {[%emt 0:04:46]} Bc6 {[%emt 0:04:19]} 14. b4 {[%emt 0:01:29]} Bxe3 {[%emt 0:00:13]} 15. Qxe3 {[%emt 0:00:05]} g6 {[%emt 0:01:15]} 16. g4 {[%emt 0:10:38]} gxf5 {[%emt 0:06:04]} 17. gxf5 {[%emt 0:00:20]} Rdg8 {[%emt 0:02:03]} 18. h3 {[%emt 0:07:34]} Rg2 {[%emt 0:02:09]} 19. a4 {[%emt 0:04:15]} Rg3 {[%emt 0:06:14]} 20. b5 {[%emt 0:10:27]} Rxf3 {[%emt 0:01:36]} 21. Qxf3 {[%emt 0:02:13]} Qh4+ {[%emt 0:00:06]} 22. Qf2 {[%emt 0:02:00]} Qxe4+ {[%emt 0:00:10]} 23. Kd2 {[%emt 0:01:00]} Bd7 {[%emt 0:00:48]} 24. Qe2 {[%emt 0:13:18]} Qxf5 {[%emt 0:02:54]} 25. Raf1 {[%emt 0:02:20]} Qg5+ {[%emt 0:03:16]} 26. Qe3 {[%emt 0:01:07]} Qg2+ {[%emt 0:02:26]} 27. Kc1 {[%emt 0:01:32]} Bf5 {[%emt 0:04:06]} 28. Qf2 {[%emt 0:03:05]} Bxh3 {[%emt 0:02:20]} 29. Qa7 {[%emt 0:03:22]} Qg5+ {[%emt 0:04:16]} 30. Kb1 {[%emt 0:01:48]} Bxf1 {[%emt 0:00:27]} 31. Qa8+ {[%emt 0:00:38]} Kd7 {[%emt 0:00:13]} 32. Qxh8 {[%emt 0:00:30]} Bd3+ {[%emt 0:00:52]} 33. Ka1 {[%emt 0:00:20]} Qd2 {[%emt 0:00:25]} 34. Qxh6 {[%emt 0:00:58]} Qxc3+ {[%emt 0:01:32]} 35. Ka2 {[%emt 0:00:06]} Bxc4+ {[%emt 0:01:05]} 36. Kb1 {[%emt 0:00:08]} Bd3+ {[%emt 0:01:00]} 37. Ka2 {[%emt 0:00:08]} Qc2+ {[%emt 0:01:05]} 38. Ka3 {[%emt 0:00:57]} Qc5+ {[%emt 0:02:30]} 39. Kb2 {[%emt 0:00:34]} Qb4+ {[%emt 0:00:40]} 40. Ka2 {[%emt 0:00:00]} Bc4+ {[%emt 0:00:00]} 41. Ka1 {[%emt 0:00:37]} Qa3+ {[%emt 0:00:31]} 42. Kb1 {[%emt 0:00:09]} Bd3# {[%emt 0:00:06]} 0-1

[Event "Hungarian U20 Junior-ch Women 2024"]
[Site "Budapest"]
[Date "2024.03.15"]
[Round "5.1"]
[White "Karacsonyi, Luca"]
[Black "Toth, Lili"]
[Result "1-0"]
[ECO "C55"]
[WhiteElo "1956"]
[BlackElo "2199"]
[Annotator "RC"]
[PlyCount "69"]
[EventDate "2024.03.10"]
[EventCountry "HUN"]
[SourceTitle "playchess.com"]
[Source "ChessBase"]
[SourceQuality "1"]
[TimeControl "40/5400+30:1800+30"]

1. e4 {[%emt 0:00:36]} e5 {[%emt 0:00:43]} 2. Nf3 {[%emt 0:00:06]} Nc6 {[%emt 0:00:08]} 3. Bc4 {[%emt 0:00:10]} Nf6 {[%emt 0:00:20]} 4. d3 {[%emt 0:00:15]} Be7 {[%emt 0:00:50]} 5. O-O {[%emt 0:00:19]} O-O {[%emt 0:00:16]} 6. Re1 {[%emt 0:00:19]} d6 {[%emt 0:00:34]} 7. a4 {[%emt 0:00:17]} h6 {[%emt 0:02:23]} 8. h3 {[%emt 0:00:55]} Be6 {[%emt 0:01:51]} 9. Nc3 {[%emt 0:01:08]} Re8 {[%emt 0:02:26]} 10. Nd5 {[%emt 0:07:20]} Bxd5 {[%emt 0:03:10]} 11. exd5 {[%emt 0:02:09]} Nb4 {[%emt 0:01:51]} 12. c3 {[%emt 0:04:24]} Nbxd5 {[%emt 0:06:46]} 13. Qb3 {[%emt 0:03:26]} c6 {[%emt 0:01:54]} 14. Qxb7 {[%emt 0:07:05]} Rb8 {[%emt 0:08:25]} 15. Qxa7 {[%emt 0:06:28]} Nb6 {[%emt 0:38:19]} 16. a5 {[%emt 0:08:43]} Nxc4 {[%emt 0:02:27]} 17. dxc4 {[%emt 0:00:47]} c5 {[%emt 0:00:08]} 18. b4 {[%emt 0:17:47]} Nd7 {[%emt 0:01:00]} 19. b5 {[%emt 0:12:05]} Bf6 {[%emt 0:03:42]} 20. Bd2 {[%emt 0:02:13]} e4 {[%emt 0:10:48]} 21. Nh2 {[%emt 0:00:55]} Ne5 {[%emt 0:00:46]} 22. b6 {[%emt 0:06:46]} Nxc4 {[%emt 0:02:15]} 23. Nf1 {[%emt 0:04:43]} Nxd2 {[%emt 0:05:47]} 24. Nxd2 {[%emt 0:00:08]} Bxc3 25. Ra2 {[%emt 0:00:35]} Ra8 {[%emt 0:04:01]} 26. Qc7 {[%emt 0:01:11]} Qxc7 {[%emt 0:01:35]} 27. bxc7 {[%emt 0:00:04]} d5 28. Rc1 {[%emt 0:01:57]} d4 {[%emt 0:01:15]} 29. Nc4 {[%emt 0:00:35]} e3 {[%emt 0:00:43]} 30. fxe3 {[%emt 0:00:23]} dxe3 {[%emt 0:00:04]} 31. Rxc3 {[%emt 0:01:06]} e2 {[%emt 0:00:26]} 32. Rxe2 {[%emt 0:00:05]} Rxe2 {[%emt 0:00:02]} 33. Nb6 {[%emt 0:00:10]} Ree8 {[%emt 0:01:30]} 34. Nxa8 {[%emt 0:00:06]} Rxa8 {[%emt 0:00:01]} 35. Rxc5 {[%emt 0:00:08]} 1-0

[Event "Hungarian U20 Junior-ch Women 2024"]
[Site "Budapest"]
[Date "2024.03.15"]
[Round "5.3"]
[White "Juhasz, Judit"]
[Black "Szarvas, Nora"]
[Result "0-1"]
[ECO "B33"]
[WhiteElo "2002"]
[BlackElo "1955"]
[Annotator "RC"]
[PlyCount "72"]
[EventDate "2024.03.10"]
[EventCountry "HUN"]
[SourceTitle "playchess.com"]
[Source "ChessBase"]
[SourceQuality "1"]
[TimeControl "40/5400+30:1800+30"]

1. e4 {[%emt 0:00:34]} c5 {[%emt 0:00:47]} 2. Nf3 {[%emt 0:00:06]} Nc6 {[%emt 0:00:09]} 3. d4 {[%emt 0:00:05]} cxd4 {[%emt 0:00:05]} 4. Nxd4 {[%emt 0:00:03]} Nf6 {[%emt 0:00:08]} 5. Nc3 {[%emt 0:00:04]} e6 {[%emt 0:00:09]} 6. Ndb5 {[%emt 0:00:19]} Bb4 {[%emt 0:00:42]} 7. a3 {[%emt 0:00:15]} Bxc3+ {[%emt 0:00:10]} 8. Nxc3 {[%emt 0:00:03]} d5 {[%emt 0:00:09]} 9. exd5 {[%emt 0:00:16]} exd5 {[%emt 0:00:11]} 10. Bd3 {[%emt 0:00:49]} O-O {[%emt 0:00:11]} 11. O-O {[%emt 0:00:08]} Bg4 {[%emt 0:00:08]} 12. f3 {[%emt 0:02:08]} Bh5 {[%emt 0:00:08]} 13. Bg5 {[%emt 0:03:11]} Qb6+ {[%emt 0:01:42]} 14. Kh1 {[%emt 0:00:06]} Ne4 {[%emt 0:00:19]} 15. Nxe4 {[%emt 0:01:21]} dxe4 {[%emt 0:00:10]} 16. Bxe4 {[%emt 0:00:18]} Qxb2 {[%emt 0:00:30]} 17. Qd6 {[%emt 0:08:36]} Qb5 {[%emt 0:16:12]} 18. Qg3 {[%emt 0:03:14]} Bg6 {[%emt 0:02:56]} 19. Bxg6 {[%emt 0:11:59]} hxg6 {[%emt 0:00:26]} 20. Rab1 {[%emt 0:16:37]} Qc4 {[%emt 0:03:04]} 21. h4 {[%emt 0:09:44]} b6 {[%emt 0:21:07]} 22. Rfe1 {[%emt 0:14:41]} Nd4 {[%emt 0:06:42]} 23. Qg4 {[%emt 0:10:09]} Rac8 {[%emt 0:05:15]} 24. Be7 {[%emt 0:11:30]} Rfe8 {[%emt 0:01:07]} 25. Bb4 {[%emt 0:00:08]} Ne6 {[%emt 0:03:03]} 26. Qxc4 {[%emt 0:06:04]} Rxc4 {[%emt 0:00:07]} 27. c3 {[%emt 0:00:54]} Rxh4+ {[%emt 0:01:46]} 28. Kg1 {[%emt 0:00:01]} Rc4 {[%emt 0:02:53]} 29. Re3 {[%emt 0:00:52]} Rd8 {[%emt 0:02:12]} 30. Be7 {[%emt 0:00:10]} Rd7 {[%emt 0:00:39]} 31. Rb4 {[%emt 0:00:16]} Rxb4 {[%emt 0:00:49]} 32. Bxb4 {[%emt 0:00:04]} a5 {[%emt 0:00:14]} 33. Bxa5 {[%emt 0:01:11]} bxa5 {[%emt 0:00:06]} 34. Re5 {[%emt 0:00:02]} Ra7 {[%emt 0:00:35]} 35. Kf2 {[%emt 0:00:09]} Kf8 {[%emt 0:00:34]} 36. Ke3 {[%emt 0:00:43]} Ke7 {[%emt 0:00:25]} 0-1

[Event "Hungarian U20 Junior-ch Women 2024"]
[Site "Budapest"]
[Date "2024.03.15"]
[Round "5.4"]
[White "Sulyok, Eszter"]
[Black "Nandin-Erdene, Davaademberel"]
[Result "1-0"]
[ECO "A80"]
[WhiteElo "2082"]
[BlackElo "1978"]
[Annotator "RC"]
[PlyCount "97"]
[EventDate "2024.03.10"]
[EventCountry "HUN"]
[SourceTitle "playchess.com"]
[Source "ChessBase"]
[SourceQuality "1"]
[TimeControl "40/5400+30:1800+30"]

1. d4 {[%emt 0:01:07]} f5 {[%emt 0:00:59]} 2. Bg5 {[%emt 0:00:29]} g6 {[%emt 0:00:57]} 3. h4 {[%emt 0:05:21]} Bg7 {[%emt 0:03:15]} 4. Nc3 {[%emt 0:03:42]} h6 {[%emt 0:02:58]} 5. Bf4 {[%emt 0:00:06]} Nf6 {[%emt 0:00:17]} 6. e3 {[%emt 0:00:10]} d6 {[%emt 0:00:32]} 7. Qf3 {[%emt 0:00:30]} e6 {[%emt 0:11:20]} 8. Bc4 {[%emt 0:04:24]} Qe7 {[%emt 0:01:23]} 9. Qg3 {[%emt 0:04:41]} Qf7 {[%emt 0:03:08]} 10. O-O-O {[%emt 0:03:33]} Bd7 {[%emt 0:05:15]} 11. Nge2 {[%emt 0:10:52]} a6 {[%emt 0:03:58]} 12. f3 {[%emt 0:10:37]} b5 {[%emt 0:09:01]} 13. Bb3 {[%emt 0:02:03]} a5 {[%emt 0:02:00]} 14. a4 {[%emt 0:11:33]} bxa4 {[%emt 0:04:53]} 15. Nxa4 {[%emt 0:00:15]} Bxa4 {[%emt 0:07:08]} 16. Bxa4+ {[%emt 0:00:05]} Nbd7 {[%emt 0:00:12]} 17. e4 {[%emt 0:03:42]} fxe4 {[%emt 0:10:25]} 18. fxe4 {[%emt 0:02:38]} O-O {[%emt 0:00:13]} 19. Qd3 {[%emt 0:20:02]} Nb6 {[%emt 0:01:54]} 20. Bc6 {[%emt 0:00:28]} Ra7 {[%emt 0:02:44]} 21. Rdf1 {[%emt 0:02:01]} a4 {[%emt 0:10:04]} 22. Be5 {[%emt 0:05:02]} dxe5 {[%emt 0:01:50]} 23. dxe5 {[%emt 0:00:05]} a3 {[%emt 0:03:09]} 24. bxa3 {[%emt 0:00:04]} Qe7 {[%emt 0:00:52]} 25. exf6 {[%emt 0:00:06]} Rxf6 {[%emt 0:00:47]} 26. Nd4 {[%emt 0:06:38]} Rxa3 {[%emt 0:04:36]} 27. Nb3 {[%emt 0:00:14]} Rxf1+ {[%emt 0:03:18]} 28. Rxf1 {[%emt 0:01:40]} Qxh4 {[%emt 0:00:27]} 29. e5 {[%emt 0:01:53]} Qg5+ {[%emt 0:00:15]} 30. Kb2 {[%emt 0:00:08]} Ra7 {[%emt 0:03:39]} 31. Re1 {[%emt 0:00:05]} Bxe5+ {[%emt 0:00:41]} 32. Kb1 {[%emt 0:00:26]} Qf6 {[%emt 0:01:37]} 33. Rf1 {[%emt 0:00:55]} Qg7 {[%emt 0:00:53]} 34. Qd8+ {[%emt 0:00:31]} Kh7 {[%emt 0:00:04]} 35. Qe8 {[%emt 0:00:11]} Bf6 {[%emt 0:02:35]} 36. Qxe6 {[%emt 0:00:06]} Bc3 {[%emt 0:00:33]} 37. Rf7 {[%emt 0:00:25]} Na4 {[%emt 0:00:21]} 38. Rxg7+ {[%emt 0:00:11]} Bxg7 {[%emt 0:00:09]} 39. Be8 {[%emt 0:01:27]} Nc3+ {[%emt 0:00:39]} 40. Kc1 {[%emt 0:00:00]} Ra8 {[%emt 0:00:00]} 41. Bxg6+ {[%emt 0:00:30]} Kh8 {[%emt 0:00:54]} 42. Bd3 {[%emt 0:02:07]} Na2+ {[%emt 0:02:21]} 43. Kd2 {[%emt 0:01:41]} Rd8 {[%emt 0:01:45]} 44. Qe7 {[%emt 0:03:37]} Rf8 {[%emt 0:01:08]} 45. Nd4 {[%emt 0:02:17]} Kg8 {[%emt 0:04:44]} 46. Ne2 {[%emt 0:01:32]} Kh8 {[%emt 0:00:51]} 47. Qe4 {[%emt 0:00:17]} Kg8 {[%emt 0:00:21]} 48. Qc4+ {[%emt 0:00:09]} Kh8 {[%emt 0:00:10]} 49. Qxa2 {[%emt 0:00:08]} 1-0

[Event "Hungarian U20 Junior-ch Women 2024"]
[Site "Budapest"]
[Date "2024.03.15"]
[Round "5.5"]
[White "Kiraly, Lilla Virag"]
[Black "Sipos, Stefania"]
[Result "1-0"]
[ECO "A48"]
[WhiteElo "1923"]
[BlackElo "1885"]
[Annotator "RC"]
[PlyCount "139"]
[EventDate "2024.03.10"]
[EventCountry "HUN"]
[SourceTitle "playchess.com"]
[Source "ChessBase"]
[SourceQuality "1"]
[TimeControl "40/5400+30:1800+30"]

1. d4 {[%emt 0:00:44]} Nf6 {[%emt 0:00:48]} 2. Nf3 {[%emt 0:00:18]} g6 {[%emt 0:00:25]} 3. Bf4 {[%emt 0:00:29]} Bg7 {[%emt 0:00:19]} 4. e3 {[%emt 0:00:40]} O-O {[%emt 0:00:35]} 5. h3 {[%emt 0:00:55]} d6 {[%emt 0:00:41]} 6. Be2 {[%emt 0:01:17]} b6 {[%emt 0:01:23]} 7. O-O {[%emt 0:01:08]} Bb7 {[%emt 0:00:36]} 8. Nbd2 {[%emt 0:01:58]} Nbd7 {[%emt 0:00:48]} 9. a4 {[%emt 0:03:20]} a6 {[%emt 0:01:41]} 10. Nc4 {[%emt 0:06:10]} Ne4 {[%emt 0:05:48]} 11. c3 {[%emt 0:13:55]} Qe8 {[%emt 0:03:54]} 12. Re1 {[%emt 0:08:08]} e5 {[%emt 0:04:32]} 13. Bh2 {[%emt 0:03:08]} Kh8 {[%emt 0:06:18]} 14. Qb3 {[%emt 0:09:22]} Rb8 {[%emt 0:06:14]} 15. Qc2 {[%emt 0:18:44]} f5 {[%emt 0:08:42]} 16. Rad1 {[%emt 0:11:29]} g5 {[%emt 0:12:39]} 17. Nfd2 {[%emt 0:05:13]} Nxd2 {[%emt 0:15:32]} 18. Qxd2 {[%emt 0:03:35]} e4 {[%emt 0:10:24]} 19. Na3 {[%emt 0:02:18]} Qg6 {[%emt 0:01:26]} 20. c4 {[%emt 0:03:03]} f4 {[%emt 0:03:27]} 21. Bf1 {[%emt 0:01:48]} fxe3 {[%emt 0:03:03]} 22. fxe3 {[%emt 0:00:21]} g4 {[%emt 0:01:47]} 23. hxg4 {[%emt 0:02:35]} Qxg4 {[%emt 0:01:07]} 24. Be2 {[%emt 0:00:19]} Qh4 {[%emt 0:02:04]} 25. Rf1 {[%emt 0:00:20]} Bh6 {[%emt 0:01:07]} 26. Rxf8+ {[%emt 0:01:03]} Rxf8 {[%emt 0:00:27]} 27. Rf1 {[%emt 0:00:15]} Rg8 {[%emt 0:01:49]} 28. Bf4 {[%emt 0:00:49]} Qh3 {[%emt 0:02:23]} 29. Bd1 {[%emt 0:00:49]} Bf8 {[%emt 0:02:36]} 30. g3 {[%emt 0:00:36]} Qe6 {[%emt 0:01:44]} 31. Qh2 {[%emt 0:00:32]} Bc8 {[%emt 0:01:01]} 32. Kg2 {[%emt 0:00:26]} Qg6 {[%emt 0:00:26]} 33. Qh5 {[%emt 0:00:31]} Qxh5 {[%emt 0:00:30]} 34. Bxh5 {[%emt 0:00:07]} Nf6 {[%emt 0:00:34]} 35. Be2 {[%emt 0:00:30]} Be7 {[%emt 0:00:23]} 36. Nc2 {[%emt 0:00:42]} Bd7 {[%emt 0:00:32]} 37. b3 {[%emt 0:00:27]} Bg4 {[%emt 0:00:35]} 38. Bxg4 {[%emt 0:00:48]} Rxg4 {[%emt 0:00:24]} 39. Nb4 {[%emt 0:00:15]} a5 {[%emt 0:00:32]} 40. Nc6 {[%emt 0:00:00]} Ng8 {[%emt 0:00:00]} 41. c5 {[%emt 0:11:02]} Rg6 {[%emt 0:13:12]} 42. cxb6 {[%emt 0:10:03]} cxb6 {[%emt 0:00:09]} 43. Rc1 {[%emt 0:01:10]} Bg5 {[%emt 0:07:06]} 44. Bxg5 {[%emt 0:06:51]} Rxg5 {[%emt 0:00:06]} 45. Nd8 {[%emt 0:01:03]} Rg6 {[%emt 0:05:25]} 46. Rc7 {[%emt 0:01:38]} Nf6 {[%emt 0:05:52]} 47. Nf7+ {[%emt 0:00:59]} Kg8 {[%emt 0:00:07]} 48. Nxd6 {[%emt 0:00:19]} Nd5 {[%emt 0:00:21]} 49. Rc8+ {[%emt 0:00:41]} Kg7 {[%emt 0:00:04]} 50. Nxe4 {[%emt 0:00:54]} Nxe3+ {[%emt 0:00:10]} 51. Kf3 {[%emt 0:00:10]} Nf5 {[%emt 0:00:20]} 52. Rc7+ {[%emt 0:00:41]} Kg8 {[%emt 0:00:58]} 53. d5 {[%emt 0:00:36]} Nd4+ {[%emt 0:02:50]} 54. Kf2 {[%emt 0:00:21]} Nxb3 {[%emt 0:00:49]} 55. d6 {[%emt 0:00:10]} Nd4 {[%emt 0:00:35]} 56. d7 {[%emt 0:00:18]} Ne6 {[%emt 0:00:11]} 57. Rc8+ {[%emt 0:00:31]} Kf7 {[%emt 0:00:25]} 58. d8=Q {[%emt 0:00:15]} Nxd8 {[%emt 0:00:04]} 59. Rxd8 {[%emt 0:00:09]} Rc6 {[%emt 0:00:58]} 60. Kf3 {[%emt 0:00:55]} Kg7 {[%emt 0:00:50]} 61. Rd7+ {[%emt 0:00:34]} Kg8 {[%emt 0:00:27]} 62. Rd4 {[%emt 0:00:59]} Kg7 {[%emt 0:00:28]} 63. Kf4 {[%emt 0:00:14]} Rc7 {[%emt 0:00:34]} 64. Ng5 {[%emt 0:00:27]} Rc6 {[%emt 0:00:28]} 65. Ne4 {[%emt 0:01:09]} Rc7 {[%emt 0:00:18]} 66. Kg5 {[%emt 0:00:11]} Re7 {[%emt 0:00:30]} 67. Kf5 {[%emt 0:00:49]} Rc7 {[%emt 0:00:40]} 68. Ke6 {[%emt 0:00:16]} Kg6 {[%emt 0:00:25]} 69. Nd6 {[%emt 0:01:28]} Kg5 {[%emt 0:00:41]} 70. Nf7+ {[%emt 0:00:12]} 1-0